fUSD/lending_fUSD_20260118
["ID","MTS","AMOUNT","RATE_DAILY","PERIOD"]
[402661642,1768763446336,-156.71374248,0.00017985,2]
[402661643,1768763446347,-306.02029615,0.00017989,2]
[402661644,1768763446356,-150.0,0.0001799,2]
[402661645,1768763446365,-306.02029615,0.0001799,2]
[402661646,1768763446376,-306.02029615,0.0001799,2]
[402661647,1768763446387,-500.0,0.00017996,2]
[402661648,1768763446396,-624.55953129,0.00017996,2]
[402661649,1768763446406,-3078.6401877,0.00017996,2]
[402661650,1768763446415,-8076.1049143,0.00017996,2]
[402661652,1768763446426,-29760.7005036,0.00017996,2]
[402661654,1768763446436,-168.0,0.00017997,2]
[402661656,1768763446445,-264.36852255,0.00017999,2]
[402661657,1768763446455,-170624.0099331,0.00017999,2]
[402661658,1768763446464,-11705.7562301,0.00017999,2]
[402661659,1768763446473,-500.0,0.00017999,2]
[402661660,1768763446482,-500.0,0.00017999,2]
[402661661,1768763446491,-500.0,0.00017999,2]
[402661662,1768763446500,-500.0,0.00017999,2]
[402661663,1768763446510,-500.0,0.00017999,2]
[402661664,1768763446519,-500.0,0.00017999,2]
[402661665,1768763446528,-151.0,0.00017999,2]
[402661666,1768763446538,-151.336588,0.00017999,2]
[402661667,1768763446547,-151.0,0.00017999,2]
[402661668,1768763446556,-151.0,0.00017999,2]
[402661669,1768763446565,-151.0,0.00017999,2]
[402661670,1768763446575,-151.0,0.00017999,2]
[402661671,1768763446584,-151.0,0.00017999,2]
[402661672,1768763446594,-228.415426,0.00017999,2]
[402661673,1768763446603,-150.0,0.00018,2]
[402661674,1768763446612,-150.0,0.00018,2]
[402661675,1768763446621,-150.00000001,0.00018,2]
[402661676,1768763446631,-150.0,0.00018,2]
[402661677,1768763446641,-958768.96052615,0.00018,2]
[402661678,1768763446651,-500.0,0.00018,2]
[402661679,1768763446660,-500.0,0.00018,2]
[402661680,1768763446669,-500.0,0.00018,2]
[402661681,1768763446679,-500.0,0.00018,2]
[402661682,1768763446688,-500.0,0.00018,2]
[402661683,1768763446697,-500.0,0.00018,2]
[402661684,1768763446709,-500.0,0.00018,2]
[402661685,1768763446719,-293.34460705,0.00018,2]
[402661686,1768763446729,-500.0,0.00018,3]
[402661687,1768763446738,-587146.97488708,0.00018,2]
[402661688,1768763448236,-218.59,0.00015622,2]
[402661689,1768763448246,-732.24,0.00017957,2]
[402661690,1768763448262,-29.41,0.00017957,2]
[402661691,1768763448271,-448.015,0.00018,2]
[402661692,1768763448282,-3501.39518372,0.00018,2]
[402661693,1768763448329,-77.60728183,0.00018,2]
[402661694,1768763448361,-603.2142,0.00018,2]
[402661695,1768763448412,-1268.4609015,0.00018,2]
[402661696,1768763448468,-1107.14984301,0.00018,2]
[402661697,1768763448824,-662.88,0.00017041,2]
[402661698,1768763448834,-285.28429575,0.00017731,2]
[402661699,1768763448849,-1248.68314574,0.00017731,2]
[402661700,1768763448861,-3377.98955851,0.00017731,2]
[402661701,1768763448870,-8025.3764426,0.00017979,2]
[402661702,1768763448880,-21382.94343304,0.00018,2]
[402661703,1768763448892,-631.32855939,0.00018,2]
[402661704,1768763448903,-343.53915486,0.00018,2]
[402661705,1768763448915,-59888.54479702,0.00018,2]
[402661706,1768763448926,-12250.26040606,0.00018,2]
[402661707,1768763448937,-58428.47887933,0.00018,2]
[402661708,1768763448958,-21425.403,0.00018,2]
[402661709,1768763448993,-1109.35610035,0.00018,2]
[402661710,1768763449008,-523.49586585,0.00018,2]
[402661711,1768763449019,-416.30793719,0.00018,2]
[402661712,1768763449094,932649.53944626,0.00015206,2]
[402661713,1768763449125,67350.46055374,0.00015206,2]
[402661714,1768763538947,158.86,0.00013416,2]
[402661715,1768763582119,653155.178,0.00015206,2]
[402661721,1768763986318,574.29,0.00024797,120]
[402661722,1768764007557,500.0,0.00027397,120]
[402661727,1768764386189,2047.79579801,0.00015,2]
[402661728,1768764424724,1213.25574664,0.00015,2]
[402661730,1768764498937,257.310391,0.00015228,2]
[402661731,1768764558114,-300.0,0.00015306,2]
[402661732,1768764558135,-250.0,0.00015306,2]
[402661733,1768764558156,-195.0,0.00015306,2]
[402661734,1768764558178,-682.56930751,0.00015306,2]
[402661735,1768764558199,-1000.0,0.00015306,2]
[402661736,1768764558220,-1362.3845,0.00015306,2]
[402661737,1768764558240,-300.0,0.00015327,2]
[402661738,1768764558260,-507.66732682,0.000154,2]
[402661739,1768764558292,-500.0,0.00015405,2]
[402661740,1768764558313,-296.50505767,0.00015405,2]
[402661749,1768764632034,-203.49494233,0.00015405,2]
[402661751,1768764632044,-118.93567092,0.00015405,2]
[402661752,1768764632085,-505.62386037,0.00015405,2]
[402661753,1768764632095,-311.31240548,0.00015405,2]
[402661754,1768764632105,-500.0,0.00015405,2]
[402661755,1768764632114,-500.0,0.00015405,2]
[402661756,1768764632124,-500.0,0.00015405,2]
[402661757,1768764632139,-500.0,0.00015405,2]
[402661758,1768764632149,-500.0,0.00015727,2]
[402661759,1768764632159,-500.0,0.00015973,2]
[402661760,1768764632171,-500.0,0.00015973,2]
[402661761,1768764632180,-500.0,0.00015973,2]
[402661762,1768764632191,-322.67821223,0.00015973,2]
[402661763,1768764632205,-177.32178777,0.00015973,2]
[402661764,1768764632215,-256.83536283,0.00015973,2]
[402661765,1768764632228,-243.16463717,0.00015973,2]
[402661766,1768764632238,-500.0,0.00015973,2]
[402661767,1768764632248,-151.0,0.00015987,2]
[402661768,1768764632258,-724.32415933,0.00016,4]
[402661769,1768764632291,-12804.88177877,0.00016,4]
[402661770,1768764632301,-150.0,0.000162,2]
[402661771,1768764632311,-150.0,0.000162,2]
[402661772,1768764632321,-150.0,0.000162,2]
[402661775,1768764632331,-150.0,0.000162,2]
[402661777,1768764632341,-150.0,0.000162,2]
[402661779,1768764632352,-5000.0,0.000162,5]
[402661781,1768764632361,-662.88,0.000162,2]
[402661783,1768764632371,-662.88,0.000162,2]
[402661784,1768764632381,-662.88,0.000162,2]
[402661786,1768764632390,-662.88,0.000162,2]
[402661789,1768764632401,-662.88,0.000162,2]
[402661790,1768764632410,-662.88,0.000162,2]
[402661791,1768764632420,-662.88,0.000162,2]
[402661792,1768764632430,-500.0,0.00016356,2]
[402661793,1768764632440,-500.0,0.00016356,2]
[402661794,1768764632450,-700.0,0.00016356,2]
[402661795,1768764632461,-500.0,0.00016437,2]
[402661796,1768764632471,-1000.0,0.00016521,2]
[402661797,1768764632480,-585.77072382,0.00016521,2]
[402661798,1768764632490,-500.0,0.00016521,2]
[402661799,1768764632505,-1000.0,0.00016521,2]
[402661800,1768764632515,-305.82815613,0.00016521,2]
[402661801,1768764632525,-574.29,0.00016531,2]
[402661802,1768764632535,-1000.0,0.00016539,2]
[402661803,1768764632545,-1000.0,0.00016555,2]
[402661804,1768764632555,-392.65,0.00016566,2]
[402661805,1768764632565,-163.0,0.0001672,2]
[402661806,1768764632575,-1266.25,0.00016788,2]
[402661807,1768764632586,-300.0,0.00016836,2]
[402661808,1768764632596,-2500.0,0.00016836,2]
[402661809,1768764632607,-254.00269941,0.00016836,2]
[402661810,1768764632617,-195.0,0.00016836,2]
[402661811,1768764632627,-2500.0,0.00016836,2]
[402661812,1768764632636,-300.0,0.00016836,2]
[402661813,1768764632645,-250.0,0.00016836,2]
[402661814,1768764632653,-662.88,0.00016841,2]
[402661815,1768764632662,-250.0,0.00016916,2]
[402661816,1768764632671,-8759.91,0.00016922,5]
[402661817,1768764632680,-2853.43,0.00016922,2]
[402661818,1768764632690,-3692.35,0.00016922,2]
[402661819,1768764632703,-3266.95,0.00016922,2]
[402661820,1768764632713,-150.99,0.00016922,2]
[402661821,1768764632722,-9999.99,0.00016922,2]
[402661822,1768764632731,-299.99,0.00016922,4]
[402661823,1768764632741,-150.99,0.00016922,2]
[402661824,1768764632750,-7788.34,0.00016922,2]
[402661825,1768764632759,-13982.48,0.00016922,2]
[402661826,1768764632768,-999.99,0.00016922,2]
[402661827,1768764632777,-600.0,0.00016946,2]
[402661828,1768764632786,-250.0,0.00016946,2]
[402661829,1768764632795,-3981.69308004,0.00016999,2]
[402661830,1768764632804,-6440.0,0.00017,2]
[402661831,1768764632813,-597.08,0.00017041,2]
[402661832,1768764632823,-662.88,0.00017041,2]
[402661833,1768764632832,-281.66,0.00017041,2]
[402661834,1768764632841,-166.66,0.00017057,2]
[402661835,1768764632850,-1500.0,0.00017068,2]
[402661836,1768764632859,-500.0,0.00017098,2]
[402661837,1768764632869,-1999.0,0.00017099,2]
[402661838,1768764632878,-250.0,0.00017099,2]
[402661839,1768764632892,-250.0,0.00017099,2]
[402661840,1768764632902,-250.0,0.00017099,2]
[402661841,1768764632914,-285.59496308,0.00017099,2]
[402661842,1768764632926,-201.42789143,0.00017099,2]
[402661843,1768764632936,-500.0,0.00017099,2]
[402661844,1768764632946,-500.0,0.00017099,2]
[402661845,1768764632957,-500.0,0.00017099,2]
[402661846,1768764632967,-500.0,0.00017099,2]
[402661847,1768764632978,-500.0,0.00017099,2]
[402661848,1768764632988,-322.6107,0.00017099,2]
[402661849,1768764632998,-500.0,0.00017099,2]
[402661850,1768764633008,-500.0,0.00017099,2]
[402661851,1768764633019,-500.0,0.00017099,2]
[402661852,1768764633029,-293.01774456,0.00017099,2]
[402661853,1768764633039,-500.0,0.00017099,2]
[402661854,1768764633049,-500.0,0.00017099,2]
[402661855,1768764633060,-500.0,0.00017099,2]
[402661856,1768764633069,-500.0,0.00017099,2]
[402661857,1768764633079,-289.88191886,0.00017099,2]
[402661858,1768764633089,-1000.0,0.00017099,2]
[402661859,1768764633099,-1000.0,0.00017099,2]
[402661860,1768764633109,-574.12855637,0.00017099,2]
[402661861,1768764633119,-1000.0,0.00017099,2]
[402661862,1768764633129,-1000.0,0.00017099,2]
[402661863,1768764633140,-1000.0,0.00017099,2]
[402661864,1768764633150,-1000.0,0.00017099,2]
[402661865,1768764633161,-1000.0,0.00017099,2]
[402661866,1768764633171,-1000.0,0.00017099,2]
[402661867,1768764633180,-1000.0,0.00017099,2]
[402661868,1768764633190,-1000.0,0.00017099,2]
[402661869,1768764633200,-1000.0,0.00017099,2]
[402661870,1768764633210,-250.0,0.00017099,2]
[402661871,1768764633220,-250.0,0.00017099,2]
[402661872,1768764633230,-250.0,0.00017099,2]
[402661873,1768764633240,-1500.0,0.00017099,2]
[402661874,1768764633250,-1500.0,0.00017099,2]
[402661875,1768764633260,-1500.0,0.00017099,2]
[402661876,1768764633271,-1500.0,0.00017099,2]
[402661877,1768764633280,-250.0,0.00017099,2]
[402661878,1768764633290,-1500.0,0.00017099,2]
[402661879,1768764633300,-250.0,0.00017099,2]
[402661880,1768764633310,-1500.0,0.00017099,2]
[402661881,1768764633320,-250.0,0.00017099,2]
[402661882,1768764633329,-1500.0,0.00017099,2]
[402661883,1768764633339,-250.0,0.00017099,2]
[402661884,1768764633348,-1500.0,0.00017099,2]
[402661885,1768764633358,-1500.0,0.00017099,2]
[402661886,1768764633367,-250.0,0.00017099,2]
[402661887,1768764633377,-1500.0,0.00017099,2]
[402661888,1768764633387,-250.0,0.00017099,2]
[402661889,1768764633396,-1500.0,0.00017099,2]
[402661890,1768764633406,-250.0,0.00017099,2]
[402661891,1768764633737,-250.0,0.00017099,2]
[402661892,1768764633747,-620.0,0.00017099,2]
[402661893,1768764633756,-3981.69308003,0.00017099,2]
[402661894,1768764633766,-3051.040571,0.000171,2]
[402661895,1768764633775,-992.0,0.00017146,2]
[402661896,1768764633784,-1000.0,0.00017159,2]
[402661897,1768764633794,-150.0,0.00017178,2]
[402661898,1768764633803,-150.0,0.00017178,2]
[402661899,1768764633813,-150.0,0.00017178,2]
[402661900,1768764633823,-3981.69308003,0.00017199,2]
[402661901,1768764633832,-992.0,0.00017227,2]
[402661902,1768764633842,-1000.0,0.0001726,2]
[402661903,1768764633851,-200.0,0.0001727,2]
[402661904,1768764633860,-235.0,0.0001729,2]
[402661905,1768764633870,-3981.69308003,0.00017299,2]
[402661906,1768764633880,-597.08,0.00017315,2]
[402661907,1768764633892,-162.33710457,0.00017329,2]
[402661908,1768764633912,-179.67,0.00017397,2]
[402661909,1768764633924,-3981.69308003,0.00017399,2]
[402661910,1768764633934,-200.0,0.00017424,2]
[402661911,1768764633945,-992.0,0.00017458,2]
[402661912,1768764633955,-3981.69308003,0.000175,2]
[402661913,1768764633966,-2000.0,0.000175,2]
[402661914,1768764633976,-1603.16860378,0.000175,2]
[402661915,1768764633986,-1000.0,0.00017534,2]
[402661916,1768764633997,-15262.77898635,0.00017555,2]
[402661917,1768764634007,-597.08,0.00017589,2]
[402661918,1768764634018,-944.0,0.00017589,2]
[402661919,1768764634027,-500.0,0.00017589,2]
[402661920,1768764634038,-500.0,0.00017589,2]
[402661921,1768764634048,-150.0,0.00017589,2]
[402661922,1768764634059,-500.0,0.00017589,2]
[402661923,1768764634070,-151.0211484,0.00017589,2]
[402661924,1768764634080,-500.0,0.00017589,2]
[402661925,1768764634090,-500.0,0.00017589,2]
[402661926,1768764634100,-3981.69308003,0.000176,2]
[402661927,1768764634111,-151.0,0.00017612,2]
[402661928,1768764634126,-166.66,0.0001762,2]
[402661929,1768764634136,-1266.25,0.00017627,2]
[402661930,1768764634146,-944.0,0.00017644,2]
[402661931,1768764634156,-500.0,0.00017644,2]
[402661932,1768764634166,-500.0,0.00017644,2]
[402661933,1768764634175,-500.0,0.00017644,2]
[402661934,1768764634186,-150.0,0.00017644,2]
[402661935,1768764634195,-500.0,0.00017644,2]
[402661936,1768764634206,-500.0,0.00017644,2]
[402661937,1768764634216,-595.37131296,0.00017647,2]
[402661938,1768764634226,-151.0,0.00017667,2]
[402661939,1768764634236,-833.0,0.0001768,2]
[402661940,1768764634246,-944.0,0.00017699,2]
[402661941,1768764634256,-500.0,0.00017699,2]
[402661942,1768764634266,-500.0,0.00017699,2]
[402661943,1768764634279,-500.0,0.00017699,2]
[402661944,1768764634290,-150.0,0.00017699,2]
[402661945,1768764634301,-500.0,0.00017699,2]
[402661946,1768764634312,-500.0,0.00017699,2]
[402661947,1768764634323,-3981.69308003,0.000177,2]
[402661948,1768764634333,-780.92599376,0.000177,2]
[402661949,1768764634343,-403.0,0.000177,5]
[402661950,1768764634354,-970.6036,0.000177,2]
[402661951,1768764634364,-151.0,0.00017723,2]
[402661952,1768764634373,-500.0,0.00017726,7]
[402661953,1768764634383,-500.0,0.00017726,7]
[402661954,1768764634393,-700.0,0.00017726,7]
[402661955,1768764634403,-1000.0,0.0001773,2]
[402661956,1768764634413,-1000.0,0.00017739,2]
[402661957,1768764634423,-944.0,0.00017753,2]
[402661958,1768764634433,-500.0,0.00017753,2]
[402661959,1768764634443,-500.0,0.00017753,2]
[402661960,1768764634453,-396.63086669,0.00017753,2]
[402661961,1768764634462,-226.80045437,0.00017753,2]
[402661962,1768764634473,-457.79708825,0.00017753,2]
[402661963,1768764634487,-500.0,0.00017753,2]
[402661964,1768764634498,-1000.0,0.00017776,2]
[402661965,1768764634508,-151.0,0.00017778,2]
[402661966,1768764634519,-1000.0,0.0001778,2]
[402661967,1768764634530,-500.0,0.00017794,2]
[402661968,1768764634540,-150.0,0.00017794,2]
[402661969,1768764634550,-3981.69308003,0.000178,2]
[402661970,1768764634560,-2500.0,0.000178,2]
[402661971,1768764634570,-49057.69950469,0.000178,2]
[402661972,1768764634580,-1210.77165326,0.000178,2]
[402661973,1768764634589,-548.729,0.00017801,2]
[402661974,1768764634599,-500.0,0.00017808,2]
[402661975,1768764634609,-944.0,0.00017808,2]
[402661976,1768764634619,-500.0,0.00017808,2]
[402661977,1768764634629,-500.0,0.00017808,2]
[402661978,1768764634640,-500.0,0.00017808,2]
[402661979,1768764634649,-1000.0,0.00017808,2]
[402661980,1768764634659,-1210.77165319,0.00017814,2]
[402661981,1768764634672,-1000.0,0.00017816,2]
[402661982,1768764634682,-156.71374248,0.00017825,2]
[402661983,1768764634691,-1210.77165319,0.00017829,2]
[402661984,1768764634701,-151.0,0.00017834,2]
[402661985,1768764634710,-168.0,0.00017838,2]
[402661986,1768764634719,-1210.77165319,0.00017843,2]
[402661987,1768764634728,-1000.0,0.00017854,2]
[402661988,1768764634737,-200.0,0.00017856,2]
[402661989,1768764634746,-1210.77165319,0.00017857,2]
[402661990,1768764634755,-500.0,0.00017863,2]
[402661991,1768764634765,-2857.34,0.00017863,7]
[402661992,1768764634774,-2857.34,0.00017863,7]
[402661993,1768764634783,-2857.34,0.00017863,7]
[402661994,1768764634792,-2857.34,0.00017863,7]
[402661995,1768764634801,-944.0,0.00017863,2]
[402661996,1768764634811,-274.65822694,0.00017863,2]
[402661997,1768764634821,-500.0,0.00017863,2]
[402661998,1768764634831,-500.0,0.00017863,2]
[402661999,1768764634845,-597.08,0.00017863,2]
[402662000,1768764634855,-1000.0,0.00017863,2]
[402662001,1768764634865,-1210.77165319,0.00017871,2]
[402662002,1768764634875,-1000.0,0.00017875,2]
[402662003,1768764634889,-1210.77165319,0.00017886,2]
[402662004,1768764634899,-151.0,0.00017889,2]
[402662005,1768764634910,-761.65,0.00017893,2]
[402662006,1768764634920,-1000.0,0.00017899,2]
[402662007,1768764634931,-1055.08851823,0.000179,2]
[402662008,1768764634941,-10000.0,0.000179,2]
[402662009,1768764634952,-19499.94007918,0.000179,3]
[402662010,1768764634964,-1266.51219315,0.000179,2]
[402662011,1768764634974,-1055.08851823,0.000179,2]
[402662012,1768764634984,-349.80907842,0.000179,2]
[402662013,1768764634994,-349.80907842,0.000179,2]
[402662014,1768764635004,-3847.15567048,0.000179,2]
[402662015,1768764635015,-1210.77165319,0.000179,2]
[402662016,1768764635026,-481.32129536,0.000179,2]
[402662017,1768764635036,-1249.39886294,0.000179,2]
[402662018,1768764635048,-586.74450569,0.000179,3]
[402662019,1768764635059,-3981.69308003,0.000179,2]
[402662020,1768764635069,-10290.69997386,0.000179,2]
[402662021,1768764635078,-5244.58242462,0.000179,2]
[402662022,1768764635089,-500.0,0.000179,2]
[402662023,1768764635099,-500.0,0.000179,2]
[402662024,1768764635109,-500.0,0.000179,2]
[402662025,1768764635119,-500.0,0.000179,2]
[402662026,1768764635129,-500.0,0.000179,2]
[402662027,1768764635139,-500.0,0.000179,2]
[402662028,1768764635149,-3883.0,0.000179,2]
[402662029,1768764635159,-1000.0,0.00017901,2]
[402662030,1768764635169,-500.0,0.00017918,2]
[402662031,1768764635179,-944.0,0.00017918,2]
[402662032,1768764635190,-500.0,0.00017918,2]
[402662033,1768764635200,-392.06877689,0.00017918,2]
[402662034,1768764635210,-1000.0,0.00017918,2]
[402662035,1768764635220,-151.0,0.00017945,2]
[402662036,1768764635230,-1000.0,0.00017961,2]
[402662037,1768764635241,-300.0,0.0001797,2]
[402662038,1768764635251,-400.0,0.0001797,2]
[402662039,1768764635262,-500.0,0.00017972,2]
[402662040,1768764635271,-944.0,0.00017973,2]
[402662041,1768764635282,-500.0,0.00017973,2]
[402662042,1768764635292,-500.0,0.00017973,2]
[402662043,1768764635302,-500.0,0.00017973,2]
[402662044,1768764635312,-500.0,0.00017973,2]
[402662045,1768764635322,-150.0,0.00017973,2]
[402662046,1768764635332,-500.0,0.00017973,2]
[402662047,1768764635342,-500.0,0.00017973,2]
[402662048,1768764635352,-150.0,0.00017973,2]
[402662049,1768764635363,-500.0,0.00017982,2]
[402662050,1768764635373,-1000.0,0.00017983,2]
[402662051,1768764635383,-1016.92674562,0.0001799,2]
[402662052,1768764635393,-306.02029615,0.0001799,2]
[402662053,1768764635403,-306.02029615,0.0001799,2]
[402662054,1768764635413,-306.02029615,0.0001799,2]
[402662055,1768764635423,-9196.007382,0.00017998,2]
[402662056,1768764635433,-152.2660709,0.00017998,2]
[402662057,1768764635444,-163766.1983678,0.00017998,2]
[402662058,1768764635454,-163.4892869,0.00017998,2]
[402662059,1768764635464,-3078.6401877,0.00017998,2]
[402662060,1768764635474,-3043.19099,0.00017998,2]
[402662061,1768764635485,-36582.2936999,0.00017998,2]
[402662062,1768764635495,-153.2764696,0.00017998,2]
[402662063,1768764635505,-264.36852255,0.00017999,2]
[402662064,1768764635515,-506.60324682,0.00017999,2]
[402662065,1768764635524,-500.0,0.00017999,2]
[402662066,1768764635535,-500.0,0.00017999,2]
[402662067,1768764635545,-500.0,0.00017999,2]
[402662068,1768764635555,-500.0,0.00017999,2]
[402662069,1768764635565,-500.0,0.00017999,2]
[402662070,1768764635575,-500.0,0.00017999,2]
[402662071,1768764635585,-500.0,0.00017999,2]
[402662072,1768764635595,-500.0,0.00017999,2]
[402662073,1768764635605,-500.0,0.00017999,2]
[402662074,1768764635614,-500.0,0.00017999,2]
[402662075,1768764635623,-500.0,0.00017999,2]
[402662076,1768764635634,-500.0,0.00017999,2]
[402662077,1768764635644,-500.0,0.00017999,2]
[402662078,1768764635654,-500.0,0.00017999,2]
[402662079,1768764635663,-500.0,0.00017999,2]
[402662080,1768764635673,-500.0,0.00017999,2]
[402662081,1768764635683,-598.46551163,0.00017999,2]
[402662082,1768764635692,-500.0,0.00017999,2]
[402662083,1768764635702,-500.0,0.00017999,2]
[402662084,1768764635712,-500.0,0.00017999,2]
[402662085,1768764635723,-500.0,0.00017999,2]
[402662086,1768764635733,-500.0,0.00017999,2]
[402662087,1768764635742,-500.0,0.00017999,2]
[402662088,1768764635752,-500.0,0.00017999,2]
[402662089,1768764635761,-500.0,0.00017999,2]
[402662090,1768764635772,-500.0,0.00017999,2]
[402662091,1768764635782,-500.0,0.00017999,2]
[402662092,1768764635791,-500.0,0.00017999,2]
[402662093,1768764635800,-425.90896285,0.00017999,2]
[402662094,1768764635810,-500.0,0.00017999,2]
[402662095,1768764635821,-150.0,0.00018,2]
[402662096,1768764635831,-150.0,0.00018,2]
[402662097,1768764635841,-150.0,0.00018,2]
[402662098,1768764635852,-139943.59435712,0.00018,2]
[402662099,1768764635882,-369.4599999,0.00018,2]
[402662100,1768764638115,-2320.18029496,0.00018,2]
[402662101,1768764638127,-3002.10256196,0.00018,2]
[402662102,1768764638140,-999.8506,0.00018,2]
[402662103,1768764638152,-1000.51193,0.00018,2]
[402662104,1768764638181,-1454.24614478,0.00018,2]
[402662105,1768764638228,-33909.29506012,0.00018,2]
[402662106,1768764638240,-871.59133588,0.00018,2]
[402662107,1768764638252,-1164.20361154,0.00018,2]
[402662108,1768764638263,-38227.29066918,0.00018,2]
[402662109,1768764638277,-431.69598331,0.00018,2]
[402662110,1768764638289,-1550.56786155,0.00018,2]
[402662111,1768764638301,-1583.41443103,0.00018,2]
[402662112,1768764638312,-42216.74504896,0.00018,2]
[402662113,1768764638324,-10580.34583948,0.00018,2]
[402662114,1768764638335,-600.0,0.00018,2]
[402662115,1768764638347,-1182.79158089,0.00018,2]
[402662116,1768764638359,-8208.13722735,0.00018,2]
[402662117,1768764638371,-1323.45921772,0.00018,2]
[402662118,1768764638383,-944.33,0.00018,2]
[402662119,1768764638406,-1157.83394336,0.00018,2]
[402662120,1768764638418,-6056.11430853,0.00018,2]
[402662123,1768764640202,-7797.00312763,0.00018,2]
[402662124,1768764640213,-405.0,0.00018,2]
[402662125,1768764640224,-1249.99854377,0.00018,2]
[402662126,1768764640235,-2759.8345469,0.00018,2]
[402662127,1768764640368,-493.65095226,0.00018,2]
[402662128,1768764640379,-398.33393223,0.00018,2]
[402662129,1768764640390,-9037.39875583,0.00018,2]
[402662130,1768764640419,-8117.35424924,0.00018,2]
[402662131,1768764640430,-284.14942719,0.00018,2]
[402662132,1768764640441,-954.7466402,0.00018,2]
[402662133,1768764640479,-737.66340702,0.00018,2]
[402662134,1768764640536,-1987051.35373465,0.00018,2]
[402662135,1768764640547,-16773.99999993,0.00018,2]
[402662136,1768764640559,-5000.00031248,0.00018,2]
[402662137,1768764640591,-6443.94524875,0.00018,2]
[402662140,1768764643219,-4727.53541213,0.00018,2]
[402662141,1768764643376,-500.0,0.00018,2]
[402662150,1768764646060,-4137.0,0.00018,2]
[402662151,1768764646117,-1826.14,0.00018,2]
[402662152,1768764646129,-1431.80668633,0.00018,2]
[402662153,1768764646173,-606613.58999111,0.00018,2]
[402662154,1768764646184,-5675.75689937,0.00018,2]
[402662155,1768764646332,-817.63749,0.00018,2]
[402662159,1768765384802,2000.0,0.00027397,120]
[402662160,1768765614128,-250.0,0.00015972,2]
[402662161,1768765614150,-195.0,0.00015972,2]
[402662162,1768765614170,-141.66755747,0.00015972,2]
[402662163,1768765737679,1022.36,0.00013219,2]
[402662165,1768765832595,-1118.51606834,0.000159,2]
[402662166,1768765832605,-250.0,0.00015972,2]
[402662167,1768765832616,-300.0,0.00015972,2]
[402662168,1768765832629,-1200.0,0.00015972,2]
[402662169,1768765832639,-500.0,0.00015973,2]
[402662170,1768765832649,-500.0,0.00015973,2]
[402662171,1768765832660,-500.0,0.00015973,2]
[402662172,1768765832670,-500.0,0.00015973,2]
[402662173,1768765832680,-500.0,0.00015973,2]
[402662174,1768765832690,-500.0,0.00015973,2]
[402662175,1768765832700,-500.0,0.00015973,2]
[402662176,1768765832709,-51.48393166,0.00015973,2]
[402662177,1768765832720,-448.51606834,0.00015973,2]
[402662178,1768765832730,-634.4,0.00015973,2]
[402662179,1768765832739,-2361.35139086,0.00016163,2]
[402662180,1768765832751,-524.45373049,0.00016163,2]
[402662181,1768765832788,-558.76267928,0.00016163,2]
[402662182,1768765832800,-514.42787914,0.00016163,2]
[402662183,1768765832809,-150.0,0.000162,2]
[402662184,1768765832819,-150.0,0.000162,2]
[402662185,1768765832829,-634.4,0.00016247,2]
[402662186,1768765832838,-151.0,0.00016294,2]
[402662187,1768765832849,-151.0,0.00016294,2]
[402662188,1768765832858,-238.0,0.0001632,2]